Nominal Code Description,Nominal Code,Transaction Detail,Date Paid,Net,Payee Name
Allotments,4301,Cotton Lane site dip tank works,23/04/2014,"1,925",L C Plumbing
Allotments,4301,ALLs grounds maint MAR-SEP14,14/01/2015,545,St Edmundsbury Borough Council
Allotments,4301,Cotton Lane site E plots rent 1.9.12-31.8.13,14/01/2015,851,St Edmundsbury Borough Council
Allotments,4301,Provision of skips to Cotton Lane/Nowton Road/Sicklesmere Road sites,31/03/2015,"1,225",Collins Skip Hire
Annual Report to Residents,4110,Information flyer to accompany Council Tax bills,27/06/2014,664,Financial Data Mgmt plc
Audit -External,4113,External audit y/end 31.3.14,01/08/2014,600,BDO LLP
Bury in Bloom Basic,4203,Abbeygate hanging baskets summer/winter,05/09/2014,"3,600",Bury In Bloom
Bury in Bloom Basic,4203,Lighting sculptures - 'Wolf'/'With the Grain',11/03/2015,"2,400",Bury In Bloom
Business Rates,4118,Business rates 1st instalmnt,01/04/2014,769,St Edmundsbury Borough Council
Business Rates,4118,Business rates 2nd instalmnt,01/05/2014,765,St Edmundsbury Borough Council
Business Rates,4118,Business rates 3rd instalment,01/06/2014,765,St Edmundsbury Borough Council
Business Rates,4118,Business rates 4th instalment,01/07/2014,765,St Edmundsbury Borough Council
Business Rates,4118,Business rates 5th installment,01/08/2014,765,St Edmundsbury Borough Council
Business Rates,4118,Business rates 6th instalment,01/09/2014,765,St Edmundsbury Borough Council
Business Rates,4118,Business rates 7th instalment,01/10/2014,765,St Edmundsbury Borough Council
Business Rates,4118,Business rates 8th instalment,01/11/2014,765,St Edmundsbury Borough Council
Business Rates,4118,Business rates 9th instalment,01/12/2014,765,St Edmundsbury Borough Council
Business Rates,4118,Business rates final instalmnt,01/01/2015,765,St Edmundsbury Borough Council
Grant funding,4215,Grant - Welcome signage,30/04/2014,"2,000",Suffolk County Council
Grant funding,4215,St Edmund Community Fete,24/08/2014,"4,500",St Edmundsbury Borough Council
Grant funding,4215,Grant - disabled leisure club,31/10/2014,858,Avenues East
Grant funding,4215,Grant - therapy sessions,31/10/2014,"2,000",BSE Womens Aid Centre
Grant funding,4215,Grant-adult airway mgmt torso,31/10/2014,600,St John Ambulance
Grant funding,4215,BSE Wolf trail donation,28/02/2015,"5,000",BSE Town Centre Management
Grant funding,4215,Grant - disabled lift,01/03/2015,"7,500","Samaritans, BSE & WS branch"
Grant funding,4215,Grant-public planting project,01/03/2015,"1,500",BSE Art Gallery Trust Ltd
Grant funding,4215,Grant - projector/screen/amplification,30/03/2015,638,Multicultural womens group BSE
Insurance,4133,Insurance 01.09.14 to 31.08.15,01/08/2014,"2,578",Community First
Insurance,4133,Buildings inusrance 1.10.13-30.9.14,15/10/2014,860,E H Insurance
Legal Expenses,4136,IT data cabinet relocation,15/10/2014,"1,844",Affinity Communicat Systms Ltd
Legal Expenses,4136,Charges re Angel Hill lease,15/10/2014,790,Rudlings & Wakelam Solicitors
Litter Bins,4386,Bin emptying 1.4.14-30.6.14,01/11/2014,551,St Edmundsbury Borough Council
Litter Bins,4386,Bin emptying 1.7.14-30.9.14,14/11/2014,551,St Edmundsbury Borough Council
Litter Bins,4386,Litter bins cast iron x 5,14/11/2014,"3,545",St Edmundsbury Borough Council
Litter Bins,4386,Bin emptying 1.10 - 31.12.14,14/01/2015,551,St Edmundsbury Borough Council
Litter Bins,4386,Bin emptying 01.01-31.03.15,04/03/2015,551,St Edmundsbury Borough Council
Office Rental,4141,Office rent 25.6 - 29.9.14,25/06/2014,"5,588",E Harris t/as Angel Hill Comme
Office Rental,4141,Office rent 29.9-24.12.14,29/09/2014,"2,794",E Harris t/as Angel Hill Comme
Office Rental,4141,Office rent 25.12.14-24.3.15,23/12/2014,"2,794",E Harris t/as Angel Hill Comme
Office Rental,4141,Office rent 25.3.15 - 24.6.15,11/03/2015,"2,794",E Harris t/as Angel Hill Comme
Office Service Charge,4142,Office service charge 25.6-29.8.14,25/06/2014,"1,991",E Harris t/as Angel Hill Comme
Office Service Charge,4142,Office service charge 29.9-24.12.14,29/09/2014,995,E Harris t/as Angel Hill Comme
Office Service Charge,4142,Office service charge 25.12.14-24.3.15,31/12/2014,995,Eastern Facilities Mgmt Soluti
Office Service Charge,4142,Office service charge 25.3-24.6.15,30/03/2015,995,Eastern Facilities Mgmt Soluti
Subscriptions,4154,Subscription 2014/15,30/04/2014,"2,638",Suffolk Assn. Local Councils
Training & Other Staff Costs,4005,Assistant Town Clerk/Responsible Financial Officer University course fees L5/Yr2,15/09/2014,"1,860",University of Gloucestershire
War Memorials,4395,War memorials cleaning,26/11/2014,"1,200",Saxon Monumental Craft
